[Event "HUN Women vs Morgan Stanley 2022"]
[Site "Budapest"]
[Date "2022.06.27"]
[Round "4.3"]
[White "Torma, Robert"]
[Black "Gaal, Zsoka"]
[Result "1/2-1/2"]
[ECO "A49"]
[WhiteElo "2421"]
[BlackElo "2323"]
[Annotator "TA"]
[PlyCount "67"]
[EventDate "2022.06.27"]
[EventType "schev"]
[EventCountry "HUN"]
[SourceTitle "playchess.com"]
[Source "ChessBase"]
[SourceQuality "1"]
[TimeControl "900+2"]

{[%evp 16,67,16,7,18,14,25,14,12,10,35,17,12,0,17,0,34,-25,0,0,25,11,11,20,38,33,39,44,43,54,155,154,144,135,129,0,0,-78,61,73,85,0,0,0,0,-47,-40,-37,-37,-26,0,-43,0,-30]} 1. d4 {[%emt 0:00:04]} Nf6 {[%emt 0:00:11]} 2. Nf3 {[%emt 0:00:03]} g6 {[%emt 0:00:04]} 3. g3 {[%emt 0:00:08]} Bg7 {[%emt 0:00:01]} 4. Bg2 {[%emt 0:00:01]} O-O {[%emt 0:00:02]} 5. O-O {[%emt 0:00:03]} d6 {[%emt 0:00:01]} 6. Nc3 {[%emt 0:00:04]} Nbd7 {[%emt 0:00:31]} 7. e4 {[%emt 0:00:04]} e5 {[%emt 0:00:01]} 8. dxe5 {[%emt 0:01:11]} dxe5 {[%emt 0:00:05]} 9. b3 {[%emt 0:00:18]} c6 {[%emt 0:00:43] B07: Pirc Defence: Miscellaneous Systems.} 10. a4 {[%emt 0:00:22]} Qa5 {[%emt 0:00:14]} 11. Qe1 {[%emt 0:00:56][%cal Oc3d5]} Re8 {[%emt 0:00:38]} 12. Bb2 {[%emt 0:01:54] [#]} Nf8 $146 {[%emt 0:00:51]} ({Predecessor:} 12... Bf8 13. Nd5 Qxe1 14. Nxf6+ Nxf6 15. Rfxe1 Bd6 16. h3 Nd7 17. Ba3 Bxa3 18. Rxa3 a5 {½-½ (47) Czoeppan,T (2039)-Von Schlippe,N (2032) Bayern 2017}) 13. Nd2 {[%emt 0:00:20]} Qc7 {[%emt 0:00:47]} 14. Nc4 {[%emt 0:00:15]} Ne6 {[%emt 0:01:42]} (14... Be6 $5 {[%cal Re6c4]}) 15. Ne2 {[%emt 0:00:10] Against Nd4} Nd7 {[%emt 0:01:39]} 16. Qd2 {[%emt 0:00:58]} (16. a5 $14) 16... a5 {[%emt 0:01:23]} 17. f4 {[%emt 0:02:50]} exf4 {[%emt 0:03:45]} 18. Bxg7 {[%emt 0:00:02]} Nxg7 {[%emt 0:00:01]} 19. gxf4 {[%emt 0:00:14]} Nc5 {[%emt 0:00:08]} 20. Ng3 {[%emt 0:02:13]} Be6 {[%emt 0:00:19]} 21. Nd6 {[%emt 0:00:23] aiming for f5.} Red8 {[%emt 0:00:03]} 22. e5 {[%emt 0:00:02]} Ne8 {[%emt 0:00:08]} (22... Nf5 $14) 23. Nxe8 {[%emt 0:00:24] 0x0.002229e8a9d5dp-1022s more active pieces. The black rooks are badly placed.} Rxe8 {[%emt 0:00:05]} 24. f5 {[%emt 0:00:02] Black must now prevent Qe3.} Bd5 {[%emt 0:00:46] [#]} 25. Bxd5 {[%emt 0:01:16]} (25. e6 $1 $16) 25... cxd5 $11 {[%emt 0:00:02]} 26. Rae1 {[%emt 0:00:22]} (26. e6 $11) 26... Ne4 {[%emt 0:00:40]} (26... Rxe5 $17 27. Rxe5 Qxe5) 27. Nxe4 $14 {[%emt 0:00:34]} dxe4 {[%emt 0:00:00] [#]} 28. Rxe4 {[%emt 0:00:20]} ({White should try} 28. e6 $1 $16) 28... Rxe5 $11 {[%emt 0:00:04]} 29. Rxe5 {[%emt 0:00:10]} Qxe5 $14 {[%emt 0:00:01] KQR-KQR} 30. f6 {[%emt 0:00:09]} (30. fxg6 $1 $11 hxg6 31. Qd7) 30... Qc5+ {[%emt 0:00:26]} 31. Kh1 {[%emt 0:00:06]} Qc6+ {[%emt 0:00:01]} 32. Kg1 $1 {[%emt 0:00:03]} Qc5+ {[%emt 0:00:12]} 33. Kh1 $1 Qc6+ 34. Kg1 $1 {[%emt 0:00:02] Weighted Error Value: White=0.23 (precise) /Black=0.24 (precise)} 1/2-1/2

[Event "HUN Women vs Morgan Stanley 2022"]
[Site "Budapest"]
[Date "2022.06.27"]
[Round "4.4"]
[White "Lazarne Vajda, Szidonia"]
[Black "Lizak, Peter"]
[Result "1/2-1/2"]
[ECO "B13"]
[WhiteElo "2313"]
[BlackElo "2400"]
[Annotator "TA"]
[PlyCount "79"]
[EventDate "2022.06.27"]
[EventType "schev"]
[EventCountry "HUN"]
[SourceTitle "playchess.com"]
[Source "ChessBase"]
[SourceQuality "1"]
[TimeControl "900+2"]

{[%evp 37,79,5,12,12,8,8,11,10,13,8,16,0,0,0,0,0,0,0,0,0,0,0,0,0,0,0,1,1,1,1,1,1,8,0,0,0,8,8,8,0,0,0,0,0]} 1. e4 {[%emt 0:00:04]} c6 {[%emt 0:00:06]} 2. d4 {[%emt 0:00:07]} d5 {[%emt 0:00:01]} 3. exd5 {[%emt 0:00:05]} cxd5 {[%emt 0:00:02]} 4. c4 {[%emt 0:00:03]} Nf6 {[%emt 0:00:03]} 5. Nc3 {[%emt 0:00:05]} Nc6 {[%emt 0:00:07]} 6. Nf3 {[%emt 0:00:19]} Bg4 {[%emt 0:00:09]} 7. cxd5 {[%emt 0:00:40]} Nxd5 {[%emt 0:00:03]} 8. Qb3 {[%emt 0:00:27]} Bxf3 {[%emt 0:00:03]} 9. gxf3 {[%emt 0:00:16]} e6 {[%emt 0:00:03]} 10. Qxb7 {[%emt 0:00:10]} Nxd4 {[%emt 0:00:06]} 11. Bb5+ {[%emt 0:00:32]} Nxb5 {[%emt 0:00:03]} 12. Qc6+ {[%emt 0:00:02]} Ke7 {[%emt 0:00:02]} 13. Qxb5 {[%emt 0:00:04]} Qd7 {[%emt 0:00:15]} 14. Bg5+ {[%emt 0:00:35]} f6 {[%emt 0:00:03]} 15. Nxd5+ {[%emt 0:01:12]} Qxd5 {[%emt 0:00:10]} 16. Qxd5 {[%emt 0:00:09]} exd5 {[%emt 0:00:01]} 17. Be3 {[%emt 0:00:04]} Ke6 {[%emt 0:00:03]} 18. O-O-O {[%emt 0:00:07]} Bb4 {[%emt 0:00:03]} 19. a3 {[%emt 0:00:08]} Rhc8+ {[%emt 0:00:02] The position is equal.} 20. Kb1 {[%emt 0:00:00] B13: Caro-Kann: Exchange Variation and Panov-Botvinnik Attack.} Bc5 {[%emt 0:08:07]} 21. Rhe1 {[%emt 0:00:19] [#] Strongly threatening Bxc5+.} Bxe3 {[%emt 0:00:01]} 22. Rxe3+ $11 {[%emt 0:01:42][%mdl 4096] Endgame KRR-KRR} Kd6 {[%emt 0:00:01]} 23. Rde1 {[%emt 0:00:04]} Rc4 {[%emt 0:00:03]} 24. Re6+ {[%emt 0:00:18]} Kc5 {[%emt 0:00:19]} 25. b4+ {[%emt 0:02:48]} Kb5 {[%emt 0:01:04]} 26. Rd6 {[%emt 0:00:24] [#]} d4 $146 {[%emt 0:00:34]} ({Predecessor:} 26... Ka4 27. Kb2 a5 28. Rxd5 axb4 29. axb4 Rac8 30. b5 Rb4+ 31. Ka1 Rc3 32. Re2 Ra3+ {½-½ (53) Bojkovic,N (2429)-Schuurman,P (2348) Novi Sad 2009}) 27. Kb2 {[%emt 0:03:31]} a5 {[%emt 0:01:38]} 28. Rd5+ {[%emt 0:00:07]} Ka4 {[%emt 0:00:04]} 29. Rxa5+ {[%emt 0:00:13]} Rxa5 {[%emt 0:00:01]} 30. bxa5 {[%emt 0:00:01]} Kxa5 {[%emt 0:00:17] KR-KR} 31. Re7 {[%emt 0:00:18]} d3 {[%emt 0:00:30]} 32. Rxg7 {[%emt 0:00:41]} Rc2+ {[%emt 0:00:03]} 33. Kb3 {[%emt 0:00:03]} Rxf2 {[%emt 0:00:06]} 34. Rxh7 {[%emt 0:00:05] next h4 is good for White.} Rxf3 {[%emt 0:00:12]} 35. Rh5+ {[%emt 0:00:14]} Kb6 {[%emt 0:00:02]} 36. Kc3 {[%emt 0:00:01]} f5 {[%emt 0:00:22]} 37. Rh8 {[%emt 0:00:07]} Kc5 {[%emt 0:00:08]} 38. Rd8 {[%emt 0:00:02]} d2+ {[%emt 0:00:02]} 39. Kxd2 {[%emt 0:00:01]} Rxa3 {[%emt 0:00:05]} 40. Rf8 {[%emt 0:00:02] Not much happened in this game.  Weighted Error Value: White=0.02 (flawless) /Black=0.01 (flawless)} 1/2-1/2

[Event "HUN Women vs Morgan Stanley 2022"]
[Site "Budapest"]
[Date "2022.06.27"]
[Round "4.5"]
[White "Torok, Sandor"]
[Black "Terbe, Julianna"]
[Result "1-0"]
[ECO "C36"]
[WhiteElo "2184"]
[BlackElo "2304"]
[Annotator "TA"]
[PlyCount "67"]
[EventDate "2022.06.27"]
[EventType "schev"]
[EventCountry "HUN"]
[SourceTitle "playchess.com"]
[Source "ChessBase"]
[SourceQuality "1"]
[TimeControl "900+2"]

{[%evp 14,67,-39,-43,0,0,3,0,56,59,93,93,93,94,327,327,504,502,576,576,788,231,225,206,212,214,238,163,154,127,116,127,170,163,169,131,137,122,170,133,146,143,151,90,87,0,139,127,183,175,221,231,230,16,0,13]} 1. e4 {[%emt 0:00:03]} e5 {[%emt 0:00:04]} 2. f4 {[%emt 0:00:04]} d5 {[%emt 0:00:06]} 3. exd5 {[%emt 0:00:02]} exf4 {[%emt 0:00:01]} 4. Nf3 {[%emt 0:00:08]} Nf6 {[%emt 0:00:03]} 5. Bc4 {[%emt 0:00:05]} Nxd5 {[%emt 0:00:18]} 6. O-O {[%emt 0:00:08]} Be6 {[%emt 0:00:04]} 7. Bxd5 {[%emt 0:00:15]} Qxd5 {[%emt 0:00:54]} 8. d4 {[%emt 0:00:15]} Be7 {[%emt 0:01:01] C36: King's Gambit Accepted: 3 Nf3 d5.} 9. Bxf4 {[%emt 0:00:30]} c6 {[%emt 0:00:20]} 10. Nc3 {[%emt 0:01:41]} Qh5 {[%emt 0:00:08] [#]} (10... Qd7 $11) 11. d5 $146 {[%emt 0:01:02]} ({Predecessor:} 11. Qd2 O-O 12. Rae1 Nd7 13. Ng5 Bxg5 14. Bxg5 Nb6 15. Ne4 Bd5 16. Ng3 Qg6 17. Nf5 {1-0 (36) Schlange,S (2256)-Ertl,H Ruhrgebiet 1999}) 11... Bxd5 {[%emt 0:01:36]} 12. Nxd5 {[%emt 0:00:12]} Qxd5 {[%emt 0:03:05]} 13. Re1 {[%emt 0:03:24][%cal Oe1e7] Hoping for Rxe7+!} Qc5+ {[%emt 0:01:28]} (13... Qxd1 $16 14. Raxd1 c5) 14. Be3 $1 $18 {[%emt 0:00:55]} Qa5 {[%emt 0:00:24]} (14... Qd5 {keeps fighting.} 15. Bd4 c5) 15. Bd4 {[%emt 0:01:12]} Kf8 {[%emt 0:00:42]} 16. Qe2 {[%emt 0:05:14]} Qc7 {[%emt 0:00:51] [#]} 17. Bxg7+ $2 {[%emt 0:00:02]} Kxg7 {[%emt 0:00:02]} 18. Qxe7 {[%emt 0:00:01]} Qxe7 {[%emt 0:00:29]} 19. Rxe7 {[%emt 0:00:01]} Na6 {[%emt 0:00:02]} 20. Rxb7 {[%emt 0:00:01]} Rhb8 {[%emt 0:00:04]} 21. Rxb8 {[%emt 0:00:06] White is more active.} Rxb8 $16 {[%emt 0:00:01][%mdl 4096] Endgame KRN-KRN} 22. b3 {[%emt 0:00:02]} Rd8 {[%emt 0:00:45]} 23. Kf2 {[%emt 0:00:04]} Kf6 {[%emt 0:00:43]} 24. Ke2 {[%emt 0:00:01]} Nb4 {[%emt 0:00:09]} 25. c3 {[%emt 0:00:03][%cal Bc2c3,Bc3c4][%mdl 32]} Nd5 {[%emt 0:00:02]} (25... Re8+ $16 26. Kf1 Nd5) 26. c4 {[%emt 0:00:11]} Nf4+ {[%emt 0:00:50]} 27. Kf2 {[%emt 0:00:00]} Re8 {[%emt 0:00:03]} 28. Kg3 {[%emt 0:00:03]} (28. Nd4 $142) 28... Ne2+ {[%emt 0:00:11] [#]} 29. Kf2 {[%emt 0:00:01]} (29. Kh4 $142 $1) 29... Nf4 $1 {[%emt 0:00:02]} 30. Kf1 {[%emt 0:00:05]} c5 {[%emt 0:00:40]} (30... Re3 $16 31. Ne1 Ke7) 31. Rd1 $18 {[%emt 0:00:01]} Re2 {[%emt 0:00:29]} (31... a5 {was necessary.} 32. g3 Ne6) 32. g3 {[%emt 0:00:03]} Re3 {[%emt 0:00:01] [#]} 33. Rd6+ $2 {[%emt 0:00:08]} ({Don't take} 33. gxf4 $6 Rxf3+ 34. Kg2 Rxf4 $16) (33. Ne1 $1 $18 Ne2 34. Rd6+ Ke7 35. Ra6) 33... Ke7 $11 {[%emt 0:00:22]} 34. Nh4 $1 {[%emt 0:00:00][%mdl 32768] Weighted Error Value: White=0.56/Black=0.42. Loss on time!?} 1-0

[Event "HUN Women vs Morgan Stanley 2022"]
[Site "Budapest"]
[Date "2022.06.27"]
[Round "5.1"]
[White "Hoang, Thanh Trang"]
[Black "Torok, Sandor"]
[Result "1-0"]
[ECO "A46"]
[WhiteElo "2376"]
[BlackElo "2184"]
[Annotator "TA"]
[PlyCount "73"]
[EventDate "2022.06.27"]
[EventType "schev"]
[EventCountry "HUN"]
[SourceTitle "playchess.com"]
[Source "ChessBase"]
[SourceQuality "1"]
[TimeControl "900+2"]

{[%evp 12,73,20,8,27,13,15,19,33,24,42,36,68,43,47,33,110,147,118,116,145,83,62,63,51,15,43,51,39,55,54,35,66,0,0,0,0,0,0,0,8,14,14,0,12,-89,0,-157,369,354,360,0,481,514,518,497,689,683,29997,29987,29987,29988,29992,1393]} 1. d4 {[%emt 0:00:05]} Nf6 {[%emt 0:00:03]} 2. Nf3 {[%emt 0:00:02]} e6 {[%emt 0:00:02]} 3. e3 {[%emt 0:00:12]} b6 {[%emt 0:00:06]} 4. Bd3 {[%emt 0:00:05]} Bb7 {[%emt 0:00:02]} 5. O-O {[%emt 0:00:09]} Be7 {[%emt 0:01:13]} 6. c4 {[%emt 0:00:08]} O-O {[%emt 0:00:22]} 7. Nc3 {[%emt 0:00:07]} Bb4 {[%emt 0:00:19] E14: Queen's Indian: Classical Variation (4 e3).} 8. Nd2 {[%emt 0:01:50] [#]} d5 $146 {[%emt 0:00:31]} ({Predecessor:} 8... c5 9. a3 Bxc3 10. bxc3 Nc6 11. e4 d6 12. d5 Na5 13. f4 exd5 14. cxd5 c4 15. Bc2 {1-0 (28) Sabuk,P (2377)-Gardian,A (1723) Wroclaw 2020}) 9. a3 {[%emt 0:00:21]} Bxc3 {[%emt 0:00:57] The position is equal.} 10. bxc3 {[%emt 0:00:02]} Nbd7 {[%emt 0:02:51]} 11. a4 {[%emt 0:00:30]} a5 {[%emt 0:02:13]} 12. Ba3 {[%emt 0:00:14]} Re8 {[%emt 0:00:01]} 13. Qc2 {[%emt 0:00:45]} e5 {[%emt 0:00:21]} (13... c5 $14) 14. cxd5 $16 {[%emt 0:00:34] White is more active.} Bxd5 {[%emt 0:01:27]} 15. e4 {[%emt 0:00:58]} Bb7 {[%emt 0:00:01] [#]} 16. d5 {[%emt 0:00:24]} (16. f4 $142 $1 {[%cal Rf4e5]}) 16... c6 {[%emt 0:00:46]} 17. dxc6 {[%emt 0:01:23]} Bxc6 {[%emt 0:00:02]} 18. Rab1 {[%emt 0:00:13]} Nc5 {[%emt 0:00:37]} 19. Bxc5 {[%emt 0:00:26]} bxc5 {[%emt 0:00:01]} 20. Bb5 {[%emt 0:00:04]} Qc7 {[%emt 0:00:58]} 21. f3 {[%emt 0:00:06]} Bxb5 {[%emt 0:00:41]} 22. Rxb5 {[%emt 0:00:16]} (22. axb5 $14 Nd7 23. Nc4) 22... c4 $11 {[%emt 0:00:01]} 23. Rfb1 {[%emt 0:00:17]} Red8 {[%emt 0:00:14]} 24. Nf1 {[%emt 0:00:18]} Rd3 {[%emt 0:00:13]} 25. Rb7 {[%emt 0:01:53]} Qc5+ {[%emt 0:00:01]} 26. Qf2 {[%emt 0:00:01]} Qd6 {[%emt 0:01:12]} (26... Qxf2+ 27. Kxf2 g6 28. Rc1 $14) 27. Ra7 {[%emt 0:00:39]} Rd8 {[%emt 0:00:04]} 28. Rbb7 {[%emt 0:00:52]} (28. Qb6 $11 {remains equal.}) 28... Rd1 {[%emt 0:00:07]} (28... Rxc3 $17 {Strongly threatening ...Rc1.} 29. Rxa5 (29. Rxf7 Nd7 $17) 29... Rc1) 29. Rxf7 $2 {[%emt 0:00:40]} ({Better is} 29. h3 $1 $11) 29... Ne8 $2 {[%emt 0:00:22]} (29... Nd7 $17 {stays on course.} 30. Rfxd7 Rxd7 31. Rxd7 Qxd7) 30. h4 $18 {[%emt 0:00:39]} Qh6 {[%emt 0:00:02]} 31. Qe2 $2 $40 {[%emt 0:00:55][%mdl 128] White is up to no good.} (31. Qc5 {[#] is a self mate.} Rxf1+ $1 {[%mdl 512]} 32. Kxf1 Rd1+ 33. Kf2 Qxh4+ 34. g3 Qh2+ 35. Ke3 Re1#) (31. f4 $18 R8d2 32. Rfe7 (32. Qc5 {gets mated.} Rxf1+ 33. Kxf1 Rd1+ 34. Ke2 Qh5+ 35. Ke3 Rd3+ 36. Kf2 Qxh4+ 37. Kf1 Rd1+ 38. Ke2 Qg4+ 39. Ke3 Re1+ 40. Kf2 Re2+ 41. Kg1 Qxg2#)) 31... Qxh4 $2 {[%emt 0:00:06][%mdl 8192]} (31... Qc1 $1 $11 {and Black stays safe.}) 32. Qxc4 {[%emt 0:00:23][%cal Of7f8] Intending Rf8+! and mate.} Rxf1+ {[%emt 0:00:06]} 33. Qxf1 {[%emt 0:00:01]} Rd2 {[%emt 0:00:03]} 34. Rfe7 {[%emt 0:00:07][%cal Re7e8]} Nd6 {[%emt 0:00:02]} 35. Rxg7+ {[%emt 0:00:04] White mates.} Kf8 {[%emt 0:00:02]} 36. Rxh7 {[%emt 0:00:03]} Qg5 {[%emt 0:00:01]} 37. Rh8+ {[%emt 0:00:04] Weighted Error Value: White=0.34/Black=0.73} 1-0

[Event "HUN Women vs Morgan Stanley 2022"]
[Site "Budapest"]
[Date "2022.06.27"]
[Round "5.2"]
[White "Torma, Robert"]
[Black "Gara, Ticia"]
[Result "1/2-1/2"]
[ECO "D78"]
[WhiteElo "2421"]
[BlackElo "2367"]
[Annotator "TA"]
[PlyCount "120"]
[EventDate "2022.06.27"]
[EventType "schev"]
[EventCountry "HUN"]
[SourceTitle "playchess.com"]
[Source "ChessBase"]
[SourceQuality "1"]
[TimeControl "900+2"]

{[%evp 14,120,6,13,23,6,14,16,94,89,120,86,87,60,60,60,55,55,53,46,110,78,68,51,182,129,120,122,152,158,301,300,455,82,75,38,68,0,27,18,304,312,315,19,13,19,16,-117,-117,-108,-101,-167,-170,-360,-243,-422,-229,-187,0,-385,-263,-263,-148,-264,0,-265,-212,-210,-178,-159,-167,-444,-10,-14,0,0,8,0,5840,0,22,22,338,25,233,0,0,-225,-225,-225,-225,-225,-225,-251,-166,-256,-230,-976,-946,-678,-666,-976,-685,-649,0,-876,0,-549,0]} 1. d4 {[%emt 0:00:05]} Nf6 {[%emt 0:00:04]} 2. Nf3 {[%emt 0:00:04]} g6 {[%emt 0:00:07]} 3. g3 {[%emt 0:00:06]} Bg7 {[%emt 0:00:05]} 4. Bg2 {[%emt 0:00:01]} d5 {[%emt 0:00:04]} 5. O-O {[%emt 0:00:04]} O-O {[%emt 0:00:01]} 6. c4 {[%emt 0:00:05]} c6 {[%emt 0:00:02]} 7. b3 {[%emt 0:00:06]} dxc4 {[%emt 0:00:18]} 8. bxc4 {[%emt 0:00:01]} c5 {[%emt 0:00:01] D78: Fianchetto Grünfeld: 6 0-0 c6.} 9. Bb2 {[%emt 0:00:07]} Qb6 {[%emt 0:00:11]} 10. Qc1 {[%emt 0:00:05]} Nfd7 {[%emt 0:00:29] [#]} (10... cxd4 $11 {keeps the balance.} 11. Nxd4 Rd8) 11. Nc3 $146 {[%emt 0:01:03]} ({Predecessor:} 11. e3 Nc6 12. Nbd2 cxd4 13. exd4 Nxd4 14. Bxd4 Bxd4 15. Rb1 Qf6 16. Ne4 Qg7 17. Rd1 {½-½ (76) Dragnev,V (2553)-Harika,D (2515) Chess.com INT 2020}) 11... Nc6 {[%emt 0:02:17]} 12. Nd5 {[%emt 0:01:16]} Qd8 {[%emt 0:00:04][%cal Rc5d4]} 13. Rd1 {[%emt 0:00:56]} (13. dxc5 {is interesting.} Nxc5 14. Bxg7 Kxg7 15. Rd1) 13... e6 {[%emt 0:00:17]} 14. Ne3 {[%emt 0:00:46]} cxd4 {[%emt 0:00:42]} 15. Nxd4 {[%emt 0:00:02]} Nxd4 {[%emt 0:01:55]} 16. Bxd4 {[%emt 0:00:01]} Qc7 {[%emt 0:02:44]} (16... Bxd4 $14 17. Rxd4 Qe7) 17. Bxg7 {[%emt 0:03:10]} Kxg7 {[%emt 0:00:01]} 18. Ng4 {[%emt 0:00:10]} f5 {[%emt 0:02:01]} (18... f6 $1 $14) 19. Qb2+ {[%emt 0:00:49]} ({White should play} 19. Qc3+ $1 $18 Nf6 20. Nxf6 Rxf6 21. c5) 19... e5 $16 {[%emt 0:00:07]} 20. Ne3 {[%emt 0:01:37][%cal Oc4c5]} Re8 {[%emt 0:01:51]} 21. Rac1 {[%emt 0:01:31]} a5 {[%emt 0:00:14]} (21... Nc5 $16) 22. c5 $18 {[%emt 0:00:38] Threatens to win with Nd5.} Ra6 {[%emt 0:00:34]} (22... Nf6 $142 23. c6 b5) 23. c6 $2 {[%emt 0:00:10]} (23. Nd5 $18 {is the precise move to win.} Qb8 24. Nb6) 23... bxc6 $16 {[%emt 0:00:11]} 24. Nc4 {[%emt 0:00:05]} (24. Qc3 $5 {[%cal Rg2c6]} c5 25. Nd5 $14) 24... c5 {[%emt 0:00:09]} 25. f4 {[%emt 0:01:04] 0x0.000861c16a50dp-1022s more active pieces.} (25. Rd5 $14) 25... Rae6 {[%emt 0:00:19]} 26. Rd5 {[%emt 0:01:01] White wants to play Nxe5.} (26. e4 {looks sharper.} fxe4 27. Bh3 Rf6 28. Bxd7 Bxd7 29. fxe5 Rfe6 30. Qc3) 26... Bb7 $2 {[%emt 0:00:40][%mdl 8192] [#]} (26... Kg8 $11) 27. Rxd7+ $1 $18 {[%emt 0:00:09][%mdl 512]} Qxd7 {[%emt 0:00:01]} 28. Qxb7 {[%emt 0:00:02]} (28. Bxb7 Qd4+ 29. Qxd4 exd4 $16) (28. Nxe5 $18 Qc7 29. Qxb7 (29. Bxb7 Rb6 $11) 29... Qxb7 30. Bxb7) 28... Qxb7 $11 {[%emt 0:00:02]} 29. Bxb7 {[%emt 0:00:01]} exf4 {[%emt 0:00:01][%mdl 64] Discovered Attack} 30. gxf4 {[%emt 0:00:16]} (30. Bf3 $1 $11) 30... Rxe2 $17 {[%emt 0:00:01]} 31. a4 {[%emt 0:00:17]} Ra2 {[%emt 0:00:09]} 32. Ne5 {[%emt 0:00:02]} (32. Nxa5 $17 Rd8 33. Bc6) 32... Rd8 $1 $19 {[%emt 0:00:08]} (32... Rxa4 33. Bc6 Rxe5 34. fxe5 Rg4+ 35. Kf2 $16) 33. Rb1 $2 {[%emt 0:00:09]} (33. Bc6 {was necessary.}) 33... Rdd2 {[%emt 0:00:04]} 34. Bf3 $2 {[%emt 0:00:01]} (34. Bc6) 34... Rdb2 {[%emt 0:00:07]} (34... Rxa4 $142 35. Rb7+ Kf8 36. Nd7+ Ke8 37. Nf6+ Kd8 38. Rb8+ Ke7 39. Nd5+ Kf7) 35. Rd1 {[%emt 0:00:02]} Rd2 {[%emt 0:00:02]} (35... Rxh2 36. Rd7+ Kh6 37. Nf7+ Kg7 38. Ne5+ Kh8 39. Rd8+ Kg7 40. Rd7+ $11) (35... Rxa4 36. Rd7+ Kf6 37. Rd6+ Ke7 38. Rd7+ Ke8) 36. Rb1 $1 {[%emt 0:00:01]} Rab2 {[%emt 0:00:01]} 37. Rc1 {[%emt 0:00:05]} Rdc2 {[%emt 0:00:06]} (37... Rxh2 $19 38. Rxc5 Rhc2 39. Rxc2 Rxc2) 38. Rd1 $17 {[%emt 0:00:01]} Rd2 {[%emt 0:00:03] White must now prevent ...Rxd1+.} ({Not} 38... Rxh2 39. Rd7+ Kf8 40. Rd8+ Ke7 41. Nc6+ Kf7 42. Ne5+ Kf6 43. Rd6+ Ke7 44. Rd7+ Ke8 45. Bc6 $17) 39. Rc1 {[%emt 0:00:03]} Kf6 {[%emt 0:00:02]} 40. Nc4 {[%emt 0:00:01]} Rdc2 {[%emt 0:00:02]} 41. Rxc2 {[%emt 0:00:02]} Rxc2 {[%emt 0:00:00]} 42. Nxa5 {[%emt 0:00:01]} (42. Bd5) 42... Ra2 $2 {[%emt 0:00:03]} (42... c4 $19 {And now ...c3 would win.} 43. Kf1 c3) 43. Bc6 $11 {[%emt 0:00:01]} Ke6 {[%emt 0:00:03][%mdl 1024] Black has compensation.} 44. Nc4 {[%emt 0:00:01]} Rc2 {[%emt 0:00:02]} 45. Bb5 {[%emt 0:00:02]} Kd5 $2 {[%emt 0:00:04][%mdl 8192]} (45... Ra2 $11) 46. a5 $2 {[%emt 0:00:01]} (46. Ne3+ $18 Ke6 47. Nxc2) 46... Rc1+ {[%emt 0:00:01]} (46... Rxc4 $2 47. Bxc4+ Kd6 48. Kf1 $18) 47. Kf2 {[%emt 0:00:01]} Ra1 $2 {[%emt 0:00:01][%mdl 8192]} (47... Rxc4 $2 48. Bxc4+ Kd6 49. Ke3 $18) (47... Kd4 $1 $11 {and Black is okay.}) 48. a6 $2 {[%emt 0:00:02]} (48. Ke3 $18) 48... Ke4 $2 {[%emt 0:00:03]} (48... Kd4 $11) 49. Nd6+ $2 {[%emt 0:00:11]} ({White must play} 49. Ke2 $1 $18) 49... Kxf4 {[%emt 0:00:01]} 50. Nc8 $2 {[%emt 0:00:01]} (50. Ke2 $11 {and White stays safe.}) 50... Ra2+ $19 {[%emt 0:00:01]} 51. Ke1 {[%emt 0:00:05]} Ke3 {[%emt 0:00:01][%cal Ra2a1]} 52. Kd1 {[%emt 0:00:01] [#]} f4 $1 {[%emt 0:00:01][%cal Bf5f4,Bf4f3,Bf3f2][%mdl 32] Hoping for ...f3.} 53. Bc4 {[%emt 0:00:03]} Ra1+ {[%emt 0:00:01]} ({Weaker is} 53... Rxh2 54. Kc1 Rh1+ 55. Kb2 Rh2+ 56. Kc1 Rh1+ 57. Kb2 Rh2+ 58. Kc1 $11) 54. Kc2 {[%emt 0:00:01] [#]} f3 $1 {[%emt 0:00:01]} ({Inferior is} 54... Kd4 55. Kb2 Ra5 56. Kb3 $15) 55. a7 $2 {[%emt 0:00:01]} (55. Kb2 Ra4 56. Nb6) 55... f2 {[%emt 0:00:01]} 56. Kb2 {[%emt 0:00:02]} Ra5 {[%emt 0:00:02]} 57. Kc3 {[%emt 0:00:04]} Ra3+ {[%emt 0:00:01]} 58. Kb2 {[%emt 0:00:01]} Ra5 {[%emt 0:00:01]} 59. Kc3 {[%emt 0:00:00]} Ra3+ {[%emt 0:00:05]} 60. Kb2 {[%emt 0:00:01] Chess con chili.} Ra5 $2 {Weighted Error Value: White=0.87/Black=1.09} (60... Ra4 $19 61. Bf1 Kf3) 1/2-1/2